[Event "XIV American Continental-ch 2019"]
[Site "Sao Paulo"]
[Date "2019.07.12"]
[Round "10.21"]
[White "Cadilhac, Igor Tokuichi Kikuch"]
[Black "Sarkar, Justin"]
[Result "1-0"]
[ECO "C48"]
[WhiteElo "2291"]
[BlackElo "2389"]
[Annotator "ChessBase"]
[PlyCount "59"]
[EventDate "2019.07.05"]
[EventType "swiss"]
[EventCountry "BRA"]
[SourceTitle "playchess.com"]
[Source "ChessBase"]
[SourceQuality "1"]
[TimeControl "40/5400+30:1800+30"]

1. e4 {[%emt 0:00:00]} e5 {[%emt 0:02:34]} 2. Nf3 {[%emt 0:00:00]} Nc6 {[%emt 0:00:11]} 3. Nc3 {[%emt 0:00:11]} Nf6 {[%emt 0:00:45]} 4. Bb5 {[%emt 0:00:11]} Bc5 {[%emt 0:01:04]} 5. O-O {[%emt 0:01:15]} O-O {[%emt 0:00:37]} 6. Nxe5 {[%emt 0:00:54]} Nxe5 {[%emt 0:00:16]} 7. d4 {[%emt 0:00:07]} Bd6 {[%emt 0:00:34]} 8. f4 {[%emt 0:00:35]} Neg4 {[%emt 0:03:54]} 9. e5 {[%emt 0:04:59]} Bb4 {[%emt 0:02:38]} 10. exf6 {[%emt 0:05:39]} Nxf6 {[%emt 0:00:20]} 11. f5 {[%emt 0:00:40]} d5 {[%emt 0:32:09]} 12. Qf3 {[%emt 0:06:14]} Bd7 {[%emt 0:07:14]} 13. Bd3 {[%emt 0:00:49]} Bc6 {[%emt 0:02:00]} 14. Bg5 {[%emt 0:06:28]} h6 {[%emt 0:03:39]} 15. Bh4 {[%emt 0:01:16]} Be7 {[%emt 0:05:02]} 16. Rae1 {[%emt 0:07:18]} Re8 {[%emt 0:00:22]} 17. Re5 {[%emt 0:14:56]} Qd7 {[%emt 0:09:22]} 18. Rfe1 {[%emt 0:11:29]} Kf8 {[%emt 0:10:41]} 19. Qh3 {[%emt 0:07:10]} b5 {[%emt 0:05:56]} 20. Ne2 {[%emt 0:10:48]} Ne4 {[%emt 0:01:23]} 21. Nf4 {[%emt 0:06:07]} Bxh4 {[%emt 0:01:58]} 22. Qxh4 {[%emt 0:00:01]} Rxe5 {[%emt 0:00:37]} 23. dxe5 {[%emt 0:00:02]} Qxf5 {[%emt 0:00:10]} 24. Rf1 {[%emt 0:00:39]} Re8 {[%emt 0:02:33]} 25. e6 {[%emt 0:02:37]} Re7 {[%emt 0:02:16]} 26. exf7 {[%emt 0:03:55]} Rxf7 {[%emt 0:03:06]} 27. Qd8+ {[%emt 0:01:42]} Be8 {[%emt 0:00:03]} 28. Bxb5 {[%emt 0:00:51]} Nd6 {[%emt 0:01:35]} 29. Bxe8 {[%emt 0:00:48]} Nxe8 {[%emt 0:00:07]} 30. Re1 {[%emt 0:00:05]} 1-0

[Event "XIV American Continental-ch 2019"]
[Site "Sao Paulo"]
[Date "2019.07.12"]
[Round "10.22"]
[White "Krysa, Leandro"]
[Black "Tomiello, Lucas Costamilan"]
[Result "1-0"]
[ECO "A05"]
[WhiteElo "2517"]
[BlackElo "2133"]
[Annotator "ChessBase"]
[PlyCount "51"]
[EventDate "2019.07.05"]
[EventType "swiss"]
[EventCountry "BRA"]
[SourceTitle "playchess.com"]
[Source "ChessBase"]
[SourceQuality "1"]
[TimeControl "40/5400+30:1800+30"]

1. Nf3 {[%emt 0:00:00]} Nf6 {[%emt 0:00:19]} 2. g3 {[%emt 0:00:00]} g6 {[%emt 0:00:52]} 3. b3 {[%emt 0:00:00]} Bg7 {[%emt 0:00:10]} 4. Bb2 {[%emt 0:00:05]} O-O {[%emt 0:00:08]} 5. Bg2 {[%emt 0:00:05]} d6 {[%emt 0:01:08]} 6. d4 {[%emt 0:00:13]} b5 {[%emt 0:05:44]} 7. Nfd2 {[%emt 0:06:59]} c6 {[%emt 0:01:28]} 8. c4 {[%emt 0:01:09]} a6 {[%emt 0:02:06]} 9. O-O {[%emt 0:06:32]} Bb7 {[%emt 0:01:44]} 10. Nc3 {[%emt 0:03:58]} Nfd7 {[%emt 0:09:02]} 11. e3 {[%emt 0:01:11]} e5 {[%emt 0:07:45]} 12. dxe5 {[%emt 0:12:47]} Nxe5 {[%emt 0:03:03]} 13. Nde4 {[%emt 0:01:12]} bxc4 {[%emt 0:09:23]} 14. Nxd6 {[%emt 0:01:26]} Nd3 {[%emt 0:03:20]} 15. Ba3 {[%emt 0:05:15]} Qa5 {[%emt 0:00:59]} 16. Na4 {[%emt 0:01:18]} Bxa1 {[%emt 0:15:49]} 17. Nxc4 {[%emt 0:01:06]} Qc7 {[%emt 0:06:12]} 18. Bxf8 {[%emt 0:02:16]} Kxf8 {[%emt 0:01:15]} 19. Qxa1 {[%emt 0:00:24]} Nd7 {[%emt 0:03:07]} 20. Rd1 {[%emt 0:08:10]} N3c5 {[%emt 0:01:14]} 21. Nxc5 {[%emt 0:00:30]} Nxc5 {[%emt 0:00:04]} 22. Qh8+ {[%emt 0:00:15]} Ke7 {[%emt 0:00:05]} 23. Qxh7 {[%emt 0:00:16]} Ne6 {[%emt 0:03:45]} 24. Nd6 {[%emt 0:00:58]} Kf8 {[%emt 0:00:26]} 25. Qh8+ {[%emt 0:00:32]} Ke7 {[%emt 0:00:09]} 26. Qh4+ {[%emt 0:00:26]} 1-0

[Event "XIV American Continental-ch 2019"]
[Site "Sao Paulo"]
[Date "2019.07.13"]
[Round "10.23"]
[White "Do Valle Cardoso, Lucas"]
[Black "Matsuura, Everaldo"]
[Result "0-1"]
[ECO "B34"]
[WhiteElo "2132"]
[BlackElo "2459"]
[Annotator "RC"]
[PlyCount "102"]
[EventDate "2019.07.05"]
[EventType "swiss"]
[EventCountry "BRA"]
[SourceTitle "playchess.com"]
[Source "ChessBase"]
[SourceQuality "1"]
[TimeControl "40/5400+30:1800+30"]

1. e4 {[%emt 0:00:00]} c5 {[%emt 0:00:19]} 2. Nf3 {[%emt 0:00:00]} Nc6 {[%emt 0:00:52]} 3. Nc3 {[%emt 0:00:09]} g6 {[%emt 0:00:28]} 4. d4 {[%emt 0:00:46]} cxd4 {[%emt 0:00:08]} 5. Nxd4 {[%emt 0:00:12]} Bg7 {[%emt 0:00:06]} 6. Nb3 {[%emt 0:00:17]} Nf6 {[%emt 0:00:09]} 7. Be2 {[%emt 0:00:08]} O-O {[%emt 0:00:08]} 8. O-O {[%emt 0:01:03]} a6 {[%emt 0:02:31]} 9. Be3 {[%emt 0:04:50]} d6 {[%emt 0:01:45]} 10. f4 {[%emt 0:05:09]} Be6 {[%emt 0:04:17]} 11. Kh1 {[%emt 0:10:43]} b5 {[%emt 0:05:25]} 12. Bf3 {[%emt 0:02:57]} Rc8 13. Nd5 {[%emt 0:19:43]} Nd7 {[%emt 0:08:07]} 14. c3 {[%emt 0:05:17]} a5 {[%emt 0:01:24]} 15. a4 {[%emt 0:10:23]} b4 {[%emt 0:07:37]} 16. Qd2 {[%emt 0:02:09]} bxc3 {[%emt 0:04:03]} 17. bxc3 {[%emt 0:00:14]} Ncb8 {[%emt 0:07:52]} 18. Rac1 {[%emt 0:03:24]} Na6 {[%emt 0:02:31]} 19. c4 {[%emt 0:00:42]} Nac5 {[%emt 0:05:12]} 20. Nxa5 Nxa4 {[%emt 0:13:45]} 21. Nb7 {[%emt 0:04:51]} Qe8 {[%emt 0:01:09]} 22. e5 {[%emt 0:16:15]} dxe5 {[%emt 0:06:09]} 23. Qb4 {[%emt 0:07:09]} Bxd5 {[%emt 0:01:03]} 24. cxd5 {[%emt 0:00:35]} exf4 {[%emt 0:02:32]} 25. Bxf4 {[%emt 0:01:49]} Nab6 {[%emt 0:12:19]} 26. Bc7 {[%emt 0:02:16]} Na8 {[%emt 0:06:09]} 27. Bg3 {[%emt 0:00:13]} Rxc1 {[%emt 0:01:44]} 28. Rxc1 {[%emt 0:00:06]} Ne5 {[%emt 0:00:16]} 29. Be2 {[%emt 0:01:02]} Qd7 {[%emt 0:00:22]} 30. Nc5 {[%emt 0:01:39]} Qxd5 {[%emt 0:00:34]} 31. Rd1 {[%emt 0:00:02]} Qc6 {[%emt 0:02:28]} 32. Bxe5 {[%emt 0:01:21]} Bxe5 {[%emt 0:00:09]} 33. Bf3 {[%emt 0:00:02]} Qb6 {[%emt 0:01:12]} 34. Qc4 {[%emt 0:00:49]} Rc8 {[%emt 0:01:29]} 35. Bxa8 {[%emt 0:00:31]} Rxc5 {[%emt 0:01:50]} 36. Qa4 {[%emt 0:00:21]} Bd6 {[%emt 0:00:45]} 37. Bd5 {[%emt 0:00:40]} Kg7 {[%emt 0:00:59]} 38. Qd4+ {[%emt 0:00:40]} f6 {[%emt 0:00:11]} 39. Qg4 {[%emt 0:00:21]} Qd8 {[%emt 0:00:55]} 40. Qe6 {[%emt 0:00:18]} Qf8 {[%emt 0:00:18]} 41. g3 {[%emt 0:00:54]} f5 {[%emt 0:12:51]} 42. Rd4 {[%emt 0:00:06]} Rc1+ {[%emt 0:02:33]} 43. Kg2 {[%emt 0:00:14]} Rc2+ {[%emt 0:00:15]} 44. Kh3 {[%emt 0:00:18]} g5 {[%emt 0:01:54]} 45. Bf3 {[%emt 0:00:57]} Qf6 {[%emt 0:02:35]} 46. Rxd6 {[%emt 0:00:16]} exd6 {[%emt 0:00:12]} 47. Qd7+ {[%emt 0:00:04]} Qf7 {[%emt 0:01:10]} 48. Qa4 {[%emt 0:00:48]} g4+ {[%emt 0:01:17]} 49. Bxg4 {[%emt 0:00:07]} fxg4+ {[%emt 0:00:08]} 50. Qxg4+ {[%emt 0:00:13]} Kf8 {[%emt 0:01:04]} 51. Qg5 {[%emt 0:00:35]} Qe6+ {[%emt 0:00:31]} 0-1

[Event "XIV American Continental-ch 2019"]
[Site "Sao Paulo"]
[Date "2019.07.12"]
[Round "10.24"]
[White "Umetsubo, Cesar Hidemitsu"]
[Black "Abdalla, Luiz Guilherme Aurel"]
[Result "1-0"]
[ECO "C04"]
[WhiteElo "2406"]
[BlackElo "2245"]
[Annotator "ChessBase"]
[PlyCount "81"]
[EventDate "2019.07.05"]
[EventType "swiss"]
[EventCountry "BRA"]
[SourceTitle "playchess.com"]
[Source "ChessBase"]
[SourceQuality "1"]
[TimeControl "40/5400+30:1800+30"]

1. e4 {[%emt 0:00:00]} e6 {[%emt 0:03:10]} 2. d4 {[%emt 0:00:06]} d5 {[%emt 0:00:03]} 3. Nd2 {[%emt 0:00:15]} Nc6 {[%emt 0:00:05]} 4. Ngf3 {[%emt 0:00:48]} Nf6 {[%emt 0:00:06]} 5. e5 {[%emt 0:01:17]} Nd7 {[%emt 0:00:02]} 6. c3 {[%emt 0:01:08]} f6 {[%emt 0:03:07]} 7. exf6 {[%emt 0:00:50]} Qxf6 {[%emt 0:00:08]} 8. Be2 {[%emt 0:07:14]} Bd6 {[%emt 0:05:30]} 9. Nf1 {[%emt 0:02:32]} O-O {[%emt 0:01:12]} 10. Bg5 {[%emt 0:00:34]} Qf7 {[%emt 0:04:06]} 11. Ne3 {[%emt 0:00:27]} Nf6 {[%emt 0:01:22]} 12. O-O {[%emt 0:07:37]} Bd7 {[%emt 0:00:51]} 13. Bh4 {[%emt 0:03:27]} e5 {[%emt 0:28:18]} 14. dxe5 {[%emt 0:04:24]} Nxe5 {[%emt 0:00:03]} 15. Nxe5 {[%emt 0:01:10]} Bxe5 {[%emt 0:00:02]} 16. Bxf6 {[%emt 0:00:42]} Qxf6 {[%emt 0:00:09]} 17. Qxd5+ {[%emt 0:00:26]} Be6 {[%emt 0:00:03]} 18. Qxe6+ {[%emt 0:01:00]} Qxe6 {[%emt 0:00:07]} 19. Bc4 {[%emt 0:00:12]} Rae8 {[%emt 0:05:56]} 20. Rfe1 {[%emt 0:09:13]} Rf6 {[%emt 0:04:33]} 21. g3 {[%emt 0:06:00]} Bd6 {[%emt 0:07:55]} 22. Bxe6+ {[%emt 0:03:52]} Rfxe6 {[%emt 0:00:02]} 23. Nc2 {[%emt 0:01:50]} Kf7 {[%emt 0:03:52]} 24. Kf1 {[%emt 0:00:53]} Rxe1+ {[%emt 0:03:50]} 25. Rxe1 {[%emt 0:02:13]} Rxe1+ {[%emt 0:00:06]} 26. Kxe1 {[%emt 0:00:26]} Ke6 {[%emt 0:00:07]} 27. Ke2 {[%emt 0:00:15]} Ke5 {[%emt 0:02:45]} 28. Ne3 {[%emt 0:01:40]} b5 {[%emt 0:00:07]} 29. h4 {[%emt 0:04:52]} a5 {[%emt 0:06:15]} 30. Kd3 {[%emt 0:00:34]} a4 {[%emt 0:00:26]} 31. f4+ {[%emt 0:00:39]} Ke6 {[%emt 0:00:02]} 32. Ke4 {[%emt 0:00:25]} c6 {[%emt 0:00:04]} 33. c4 {[%emt 0:06:49]} Bb4 {[%emt 0:05:47]} 34. cxb5 {[%emt 0:05:22]} cxb5 {[%emt 0:00:02]} 35. Nc2 {[%emt 0:00:12]} Bd2 {[%emt 0:13:23]} 36. Nd4+ {[%emt 0:01:47]} Kd6 {[%emt 0:00:06]} 37. Nxb5+ {[%emt 0:04:09]} Kc5 {[%emt 0:00:01]} 38. Kd3 {[%emt 0:00:34]} Be1 {[%emt 0:00:36]} 39. Nc3 {[%emt 0:00:10]} Kb4 {[%emt 0:01:11]} 40. Ne4 {[%emt 0:00:54]} Kb5 {[%emt 0:01:10]} 41. h5 {[%emt 0:33:14]} 1-0

[Event "XIV American Continental-ch 2019"]
[Site "Sao Paulo"]
[Date "2019.07.13"]
[Round "11.1"]
[White "Duran Vega, Sergio"]
[Black "Gonzalez Vidal, Yuri"]
[Result "1/2-1/2"]
[ECO "A46"]
[WhiteElo "2364"]
[BlackElo "2547"]
[Annotator "ChessBase"]
[PlyCount "37"]
[EventDate "2019.07.05"]
[EventType "swiss"]
[EventCountry "BRA"]
[SourceTitle "playchess.com"]
[Source "ChessBase"]
[SourceQuality "1"]
[TimeControl "40/5400+30:1800+30"]

1. d4 {[%emt 0:00:00]} Nf6 {[%emt 0:00:00]} 2. Nf3 {[%emt 0:00:00]} e6 {[%emt 0:00:00]} 3. g3 {[%emt 0:00:14]} d5 {[%emt 0:01:51]} 4. Bg2 {[%emt 0:00:28]} b5 {[%emt 0:00:32]} 5. a4 {[%emt 0:01:14]} b4 {[%emt 0:00:50]} 6. c4 {[%emt 0:00:11]} bxc3 {[%emt 0:07:18]} 7. Nxc3 {[%emt 0:00:12]} Nbd7 {[%emt 0:06:44]} 8. O-O {[%emt 0:03:18]} Bd6 {[%emt 0:09:06]} 9. Bf4 {[%emt 0:14:31]} O-O {[%emt 0:06:09]} 10. Qc2 {[%emt 0:04:01]} Bb7 {[%emt 0:04:56]} 11. a5 {[%emt 0:04:22]} Ba6 {[%emt 0:08:17]} 12. Na4 {[%emt 0:09:52]} Qe7 {[%emt 0:07:05]} 13. Rfc1 {[%emt 0:02:45]} Rfc8 {[%emt 0:05:24]} 14. e3 {[%emt 0:17:19]} Rab8 {[%emt 0:01:35]} 15. Nd2 {[%emt 0:08:11]} h6 {[%emt 0:02:10]} 16. Qc6 {[%emt 0:10:29]} Bb7 {[%emt 0:02:25]} 17. Bxd6 {[%emt 0:02:15]} cxd6 {[%emt 0:00:54]} 18. Qb5 {[%emt 0:00:14]} Qd8 {[%emt 0:02:05]} 19. b3 {[%emt 0:06:15]} 1/2-1/2

[Event "XIV American Continental-ch 2019"]
[Site "Sao Paulo"]
[Date "2019.07.13"]
[Round "11.4"]
[White "Supi, Luis Paulo"]
[Black "Mekhitarian, Krikor Sevag"]
[Result "1/2-1/2"]
[ECO "A36"]
[WhiteElo "2562"]
[BlackElo "2545"]
[Annotator "ChessBase"]
[PlyCount "39"]
[EventDate "2019.07.05"]
[EventType "swiss"]
[EventCountry "BRA"]
[SourceTitle "playchess.com"]
[Source "ChessBase"]
[SourceQuality "1"]
[TimeControl "40/5400+30:1800+30"]

1. c4 {[%emt 0:00:00]} c5 {[%emt 0:02:31]} 2. g3 {[%emt 0:00:34]} Nc6 {[%emt 0:00:08]} 3. Bg2 {[%emt 0:00:17]} g6 {[%emt 0:00:08]} 4. Nc3 {[%emt 0:00:08]} Bg7 {[%emt 0:00:07]} 5. d3 {[%emt 0:01:33]} d6 {[%emt 0:00:21]} 6. Qd2 {[%emt 0:02:17]} e6 {[%emt 0:00:48]} 7. b3 {[%emt 0:01:04]} Nge7 {[%emt 0:00:12]} 8. Bb2 {[%emt 0:00:42]} O-O {[%emt 0:01:15]} 9. Na4 {[%emt 0:05:03]} e5 {[%emt 0:05:51]} 10. Nc3 {[%emt 0:09:47]} Rb8 {[%emt 0:03:54]} 11. e3 {[%emt 0:00:52]} Bf5 {[%emt 0:10:29]} 12. Nge2 {[%emt 0:01:58]} Qd7 {[%emt 0:02:45]} 13. f4 {[%emt 0:19:35]} Bh3 {[%emt 0:05:59]} 14. Bxh3 {[%emt 0:02:03]} Qxh3 {[%emt 0:00:02]} 15. Ne4 {[%emt 0:00:39]} Rbd8 {[%emt 0:15:37]} 16. Nf2 {[%emt 0:10:57]} Qd7 {[%emt 0:07:29]} 17. e4 {[%emt 0:00:48]} f5 {[%emt 0:04:44]} 18. h4 {[%emt 0:07:46]} Nd4 {[%emt 0:05:55]} 19. O-O-O {[%emt 0:01:21]} h5 {[%emt 0:05:06]} 20. Kb1 {[%emt 0:00:37]} 1/2-1/2

[Event "XIV American Continental-ch 2019"]
[Site "Sao Paulo"]
[Date "2019.07.13"]
[Round "11.5"]
[White "Gareyev, Timur"]
[Black "Garcia Pantoja, Roberto"]
[Result "1-0"]
[ECO "D35"]
[WhiteElo "2588"]
[BlackElo "2529"]
[Annotator "ChessBase"]
[PlyCount "73"]
[EventDate "2019.07.05"]
[EventType "swiss"]
[EventCountry "BRA"]
[SourceTitle "playchess.com"]
[Source "ChessBase"]
[SourceQuality "1"]
[TimeControl "40/5400+30:1800+30"]

1. d4 {[%emt 0:23:00]} d5 {[%emt 0:00:00]} 2. c4 {[%emt 0:00:29]} e6 {[%emt 0:00:00]} 3. Nc3 {[%emt 0:00:06]} Nf6 {[%emt 0:00:44]} 4. cxd5 {[%emt 0:00:15]} exd5 {[%emt 0:00:07]} 5. Bg5 {[%emt 0:00:02]} Be7 {[%emt 0:00:09]} 6. e3 {[%emt 0:00:09]} c6 {[%emt 0:00:05]} 7. Bd3 {[%emt 0:00:49]} O-O {[%emt 0:00:09]} 8. Qc2 {[%emt 0:00:33]} Nbd7 {[%emt 0:00:09]} 9. Nf3 {[%emt 0:06:00]} Re8 {[%emt 0:00:06]} 10. h4 {[%emt 0:00:06]} Nf8 {[%emt 0:03:35]} 11. O-O-O {[%emt 0:06:11]} a5 {[%emt 0:00:06]} 12. Kb1 {[%emt 0:02:04]} a4 {[%emt 0:00:33]} 13. a3 {[%emt 0:00:01]} Qa5 {[%emt 0:09:56]} 14. Ne5 {[%emt 0:04:19]} Ng4 {[%emt 0:09:59]} 15. Nf3 {[%emt 0:06:22]} Nf6 {[%emt 0:08:21]} 16. Rc1 {[%emt 0:04:00]} Be6 {[%emt 0:04:53]} 17. Ne5 {[%emt 0:05:09]} N6d7 {[%emt 0:08:28]} 18. f4 {[%emt 0:01:12]} f6 {[%emt 0:13:54]} 19. f5 {[%emt 0:04:36]} Nxe5 {[%emt 0:14:45]} 20. dxe5 {[%emt 0:00:05]} Bxf5 {[%emt 0:05:46]} 21. Bxf5 {[%emt 0:03:26]} fxg5 {[%emt 0:00:28]} 22. hxg5 {[%emt 0:14:14]} g6 {[%emt 0:00:03]} 23. Bxg6 {[%emt 0:04:26]} Nxg6 {[%emt 0:05:02]} 24. Rh6 {[%emt 0:00:01]} Bf8 {[%emt 0:07:15]} 25. Rxg6+ {[%emt 0:05:59]} hxg6 {[%emt 0:00:01]} 26. Qxg6+ {[%emt 0:00:05]} Bg7 {[%emt 0:00:03]} 27. Rh1 {[%emt 0:00:36]} Re7 {[%emt 0:02:39]} 28. e6 {[%emt 0:00:02]} Qa6 {[%emt 0:00:18]} 29. Rh4 {[%emt 0:02:24]} Qf1+ {[%emt 0:02:14]} 30. Ka2 {[%emt 0:00:04]} Rxe6 {[%emt 0:01:04]} 31. Qh7+ {[%emt 0:02:00]} Kf8 {[%emt 0:00:08]} 32. Rf4+ {[%emt 0:00:11]} Qxf4 {[%emt 0:00:04]} 33. exf4 {[%emt 0:00:06]} Bxc3 {[%emt 0:00:02]} 34. bxc3 {[%emt 0:01:55]} Rae8 {[%emt 0:04:10]} 35. g6 {[%emt 0:01:10]} Re2+ {[%emt 0:00:15]} 36. Kb1 {[%emt 0:00:01]} Rxg2 {[%emt 0:01:51]} 37. Qf7# {[%emt 0:00:08]} 1-0

[Event "XIV American Continental-ch 2019"]
[Site "Sao Paulo"]
[Date "2019.07.13"]
[Round "11.6"]
[White "Pichot, Alan"]
[Black "Roselli Mailhe, Bernardo"]
[Result "1-0"]
[ECO "C16"]
[WhiteElo "2579"]
[BlackElo "2471"]
[Annotator "ChessBase"]
[PlyCount "79"]
[EventDate "2019.07.05"]
[EventType "swiss"]
[EventCountry "BRA"]
[SourceTitle "playchess.com"]
[Source "ChessBase"]
[SourceQuality "1"]
[TimeControl "40/5400+30:1800+30"]

1. e4 {[%emt 0:00:00]} e6 {[%emt 0:00:00]} 2. d4 {[%emt 0:00:00]} d5 {[%emt 0:00:00]} 3. Nc3 {[%emt 0:00:00]} Bb4 {[%emt 0:00:00]} 4. e5 {[%emt 0:00:00]} b6 {[%emt 0:00:00]} 5. a3 {[%emt 0:00:15]} Bf8 {[%emt 0:00:00]} 6. Nf3 {[%emt 0:00:57]} Ne7 {[%emt 0:00:03]} 7. Bb5+ {[%emt 0:03:00]} c6 {[%emt 0:00:04]} 8. Bd3 {[%emt 0:00:12]} a5 {[%emt 0:01:18]} 9. h4 {[%emt 0:03:47]} h6 {[%emt 0:01:46]} 10. h5 {[%emt 0:03:55]} Ba6 {[%emt 0:00:09]} 11. Bxa6 {[%emt 0:07:09]} Nxa6 {[%emt 0:02:52]} 12. Ne2 {[%emt 0:01:09]} c5 {[%emt 0:05:39]} 13. c3 {[%emt 0:00:06]} Nc6 {[%emt 0:03:39]} 14. Nh4 {[%emt 0:02:34]} Be7 {[%emt 0:04:49]} 15. g3 {[%emt 0:00:07]} cxd4 {[%emt 0:00:18]} 16. cxd4 {[%emt 0:00:13]} b5 {[%emt 0:00:21]} 17. f4 {[%emt 0:03:41]} Qb6 {[%emt 0:02:35]} 18. Qd3 {[%emt 0:02:45]} Nc7 {[%emt 0:03:27]} 19. b3 {[%emt 0:06:45]} O-O-O {[%emt 0:10:21]} 20. Bd2 {[%emt 0:02:50]} Kb7 {[%emt 0:00:22]} 21. Nf3 {[%emt 0:08:19]} Rc8 {[%emt 0:15:17]} 22. Kf2 {[%emt 0:00:55]} f6 {[%emt 0:08:57]} 23. Be3 {[%emt 0:03:17]} f5 {[%emt 0:01:00]} 24. Rhg1 {[%emt 0:03:45]} Rhf8 {[%emt 0:00:17]} 25. Rgc1 {[%emt 0:04:32]} Rg8 {[%emt 0:05:01]} 26. Qd1 {[%emt 0:02:37]} Na6 {[%emt 0:02:47]} 27. Qg1 {[%emt 0:03:27]} Qd8 {[%emt 0:03:00]} 28. Nc3 {[%emt 0:05:31]} Na7 {[%emt 0:04:01]} 29. a4 {[%emt 0:02:14]} Nb4 {[%emt 0:02:40]} 30. Qf1 {[%emt 0:00:28]} bxa4 {[%emt 0:00:12]} 31. Nxa4 {[%emt 0:01:06]} Qd7 {[%emt 0:00:09]} 32. Nc5+ {[%emt 0:04:31]} Bxc5 {[%emt 0:00:14]} 33. dxc5 {[%emt 0:00:43]} Nbc6 {[%emt 0:05:25]} 34. Bd2 {[%emt 0:02:21]} d4 {[%emt 0:01:59]} 35. Qc4 {[%emt 0:00:57]} Rgd8 {[%emt 0:00:22]} 36. Bxa5 {[%emt 0:00:58]} Nxa5 {[%emt 0:00:30]} 37. Rxa5 {[%emt 0:00:08]} d3 {[%emt 0:01:09]} 38. Rca1 {[%emt 0:02:01]} Ra8 {[%emt 0:00:28]} 39. Qa6+ {[%emt 0:00:34]} Kb8 {[%emt 0:00:13]} 40. Qb6+ {[%emt 0:00:14]} 1-0

[Event "XIV American Continental-ch 2019"]
[Site "Sao Paulo"]
[Date "2019.07.13"]
[Round "11.7"]
[White "Mecking, Henrique"]
[Black "Perdomo, Leandro"]
[Result "1/2-1/2"]
[ECO "E81"]
[WhiteElo "2576"]
[BlackElo "2468"]
[Annotator "ChessBase"]
[PlyCount "96"]
[EventDate "2019.07.05"]
[EventType "swiss"]
[EventCountry "BRA"]
[SourceTitle "playchess.com"]
[Source "ChessBase"]
[SourceQuality "1"]
[TimeControl "40/5400+30:1800+30"]

1. d4 {[%emt 0:15:30]} Nf6 {[%emt 0:00:00]} 2. c4 {[%emt 0:00:17]} g6 {[%emt 0:00:00]} 3. Nc3 {[%emt 0:00:06]} Bg7 {[%emt 0:00:00]} 4. e4 {[%emt 0:00:15]} d6 {[%emt 0:00:00]} 5. f3 {[%emt 0:00:07]} O-O {[%emt 0:00:00]} 6. Be3 {[%emt 0:00:03]} Nbd7 {[%emt 0:03:52]} 7. Qd2 {[%emt 0:01:16]} c5 {[%emt 0:00:41]} 8. d5 {[%emt 0:01:26]} Ne5 {[%emt 0:00:21]} 9. Bg5 {[%emt 0:01:23]} a6 {[%emt 0:00:32]} 10. f4 {[%emt 0:00:58]} Ned7 {[%emt 0:00:06]} 11. Nf3 {[%emt 0:12:21]} b5 {[%emt 0:00:56]} 12. cxb5 {[%emt 0:01:44]} Qa5 {[%emt 0:00:22]} 13. e5 {[%emt 0:08:13]} Re8 {[%emt 0:00:22]} 14. Be2 {[%emt 0:04:02]} axb5 {[%emt 0:02:00]} 15. Nxb5 {[%emt 0:07:49]} Nxd5 {[%emt 0:33:17]} 16. Rd1 {[%emt 0:09:25]} N7b6 {[%emt 0:24:36]} 17. exd6 {[%emt 0:04:08]} exd6 {[%emt 0:00:58]} 18. Nxd6 {[%emt 0:04:07]} Ba6 {[%emt 0:21:50]} 19. Nxe8 {[%emt 0:02:05]} Rxe8 {[%emt 0:01:34]} 20. Ne5 {[%emt 0:14:51]} Qxd2+ {[%emt 0:01:48]} 21. Rxd2 {[%emt 0:00:06]} Bxe2 {[%emt 0:00:03]} 22. Rxe2 {[%emt 0:00:12]} f6 {[%emt 0:00:19]} 23. Nd3 {[%emt 0:01:08]} Rxe2+ {[%emt 0:00:15]} 24. Kxe2 {[%emt 0:00:03]} fxg5 {[%emt 0:00:28]} 25. Nxc5 {[%emt 0:00:50]} Nxf4+ {[%emt 0:01:05]} 26. Kf3 {[%emt 0:00:37]} Bxb2 {[%emt 0:00:46]} 27. a4 {[%emt 0:04:23]} Nc4 {[%emt 0:01:28]} 28. Rd1 {[%emt 0:01:41]} Ba3 {[%emt 0:02:12]} 29. g3 {[%emt 0:02:24]} Bxc5 {[%emt 0:02:06]} 30. gxf4 {[%emt 0:00:03]} gxf4 {[%emt 0:01:13]} 31. Rc1 {[%emt 0:01:57]} Ne5+ {[%emt 0:01:27]} 32. Ke4 {[%emt 0:00:07]} Nd7 {[%emt 0:00:05]} 33. Rd1 {[%emt 0:00:35]} Nf6+ {[%emt 0:01:13]} 34. Kxf4 {[%emt 0:00:10]} Bb4 {[%emt 0:00:29]} 35. h3 {[%emt 0:00:15]} Kf7 {[%emt 0:00:17]} 36. Ra1 {[%emt 0:00:59]} Bd2+ {[%emt 0:00:32]} 37. Kf3 {[%emt 0:00:06]} Ba5 {[%emt 0:00:15]} 38. Rb1 {[%emt 0:00:05]} Ke6 {[%emt 0:00:54]} 39. Rb5 {[%emt 0:00:09]} Bc7 {[%emt 0:00:35]} 40. a5 {[%emt 0:00:11]} Nd7 {[%emt 0:00:26]} 41. a6 {[%emt 0:30:25]} Bb6 {[%emt 0:02:50]} 42. Rb2 {[%emt 0:00:00]} Kd6 {[%emt 0:02:37]} 43. Kf4 {[%emt 0:00:00]} Kc6 {[%emt 0:11:45]} 44. Ra2 {[%emt 0:00:00]} Ba7 {[%emt 0:01:01]} 45. Re2 {[%emt 0:00:00]} Nc5 {[%emt 0:07:28]} 46. Re7 {[%emt 0:00:00]} Kb6 {[%emt 0:00:15]} 47. Rxh7 {[%emt 0:00:00]} Kxa6 {[%emt 0:01:07]} 48. Kg5 {[%emt 0:00:00]} Ne6+ {[%emt 0:00:15]} 1/2-1/2